fUST/lending_fUST_20250817
["ID","MTS","AMOUNT","RATE_DAILY","PERIOD"]
[379768174,1755403842245,-480.0,0.00020833,2]
[379768176,1755403842254,-153.137692,0.00020834,2]
[379768178,1755403842264,-1004.26,0.00020834,2]
[379768180,1755403842273,-1333.72,0.00020834,2]
[379768182,1755403842283,-480.0,0.00020834,2]
[379768185,1755403842293,-662.93,0.00020834,2]
[379768187,1755403842303,-1278.12,0.00020834,2]
[379768189,1755403842313,-740.64,0.00020834,2]
[379768191,1755403842323,-480.0,0.00020834,2]
[379768193,1755403842332,-480.0,0.00020834,2]
[379768195,1755403842342,-1791.61,0.00020834,2]
[379768197,1755403842351,-480.0,0.00020834,2]
[379768199,1755403842360,-480.0,0.00020835,2]
[379768201,1755403842370,-510.0,0.00020835,2]
[379768203,1755403842379,-480.0,0.00020835,2]
[379768204,1755403842388,-950.85,0.00020835,2]
[379768207,1755403842398,-480.0,0.00020835,2]
[379768208,1755403842407,-191.38629632,0.00020835,2]
[379768210,1755403842417,-480.0,0.00020835,2]
[379768212,1755403842426,-1188.82,0.00020835,2]
[379768215,1755403842436,-480.0,0.00020835,2]
[379768217,1755403842446,-480.0,0.00020835,2]
[379768219,1755403842455,-480.0,0.00020835,2]
[379768221,1755403842465,-2.37090171,0.00020835,2]
[379768289,1755403843325,-480.0,0.00020286,2]
[379768292,1755403843335,-160.37506893,0.00020835,2]
[379768294,1755403843345,-480.0,0.00020835,2]
[379768296,1755403843354,-198.82393111,0.00020835,2]
[379768297,1755403843363,-596.21,0.00020835,2]
[379768299,1755403843373,-2541.34438358,0.00020836,2]
[379768302,1755403843385,-1248.87561642,0.00020836,2]
[379768304,1755403843396,-480.0,0.00020836,2]
[379768306,1755403843405,-188.88182738,0.00020836,2]
[379768342,1755403846475,-1167.01,0.00020285,2]
[379768343,1755403846485,-480.0,0.00020287,2]
[379768344,1755403846495,-480.0,0.00020287,2]
[379768345,1755403846504,-480.0,0.0002029,2]
[379768346,1755403846513,-763.46,0.00020354,2]
[379768347,1755403846522,-1082.62999997,0.00020559,2]
[379768348,1755403846533,-84.38000003,0.00020559,2]
[379768349,1755403846542,-480.0,0.00020561,2]
[379768350,1755403846552,-1167.01,0.00020833,2]
[379768351,1755403846561,-185.80999997,0.00020835,2]
[379772122,1755403889164,269.96,0.00019883,2]
[379772391,1755403892170,500.0,0.00018834,2]
[379773550,1755403974151,266.52,0.00019889,2]
[379773551,1755404057688,263.13,0.0001988,2]
[379773552,1755404139861,259.78,0.00019882,2]
[379773555,1755404226350,256.48,0.00019888,2]
[379773556,1755404271108,157.503222,0.00019863,2]
[379773562,1755404307522,253.21,0.00019889,2]
[379773567,1755404365992,5345.98211043,0.00019245,2]
[379773568,1755404366014,924.89008167,0.00019245,2]
[379773573,1755404388369,249.99,0.00019891,2]
[379773576,1755404470625,246.81,0.00019891,2]
[379773579,1755404552838,243.67,0.00019884,2]
[379773677,1755404634931,240.57,0.000199,2]
[379773678,1755404637714,817.48832601,0.0002,2]
[379773738,1755404697505,165.587892,0.00013699,2]
[379773739,1755404718294,237.5,0.00019882,2]
[379773740,1755404800867,234.48,0.00019889,2]
[379773741,1755404884365,231.5,0.00019892,2]
[379773742,1755404966045,228.55,0.00019891,2]
[379773789,1755405032642,-1050.63318794,0.00020086,2]
[379773792,1755405032653,-524.26587541,0.00020086,2]
[379773802,1755405032701,-223.38196098,0.00020086,2]
[379773803,1755405032710,-300.0,0.00020186,2]
[379773804,1755405032719,-300.0,0.00020186,2]
[379773805,1755405032728,-89.2481107,0.00020186,2]
[379773806,1755405032739,-139.7518893,0.00020186,2]
[379773807,1755405032748,-176.73261845,0.00020186,2]
[379773808,1755405032759,-1023.26738155,0.00020186,2]
[379773809,1755405032768,-1200.0,0.00020187,2]
[379773810,1755405032777,-5205.99455986,0.00020189,2]
[379773831,1755405038765,-1937.89544014,0.00020189,2]
[379773832,1755405038774,-1074.81,0.00020282,2]
[379773833,1755405038784,-480.0,0.00020282,2]
[379773834,1755405038793,-480.0,0.00020282,2]
[379773835,1755405038802,-480.0,0.00020282,2]
[379773836,1755405038811,-480.0,0.00020282,2]
[379773837,1755405038966,-670.23,0.00020282,2]
[379773838,1755405038979,-1245.01,0.00020282,2]
[379773839,1755405038988,-480.0,0.00020282,2]
[379773840,1755405038997,-737.37,0.00020282,2]
[379773841,1755405039006,-480.0,0.00020282,2]
[379773842,1755405039015,-480.0,0.00020282,2]
[379773843,1755405039024,-480.0,0.00020282,2]
[379773844,1755405039033,-480.0,0.00020282,2]
[379773845,1755405039042,-480.0,0.00020282,2]
[379773846,1755405039051,-480.0,0.00020282,2]
[379773847,1755405039060,-480.0,0.00020282,2]
[379773848,1755405039069,-2019.38,0.00020282,2]
[379773849,1755405039078,-480.0,0.00020282,2]
[379773850,1755405039088,-1020.77,0.00020282,2]
[379773851,1755405039097,-480.0,0.00020282,2]
[379773852,1755405039106,-468.03343602,0.00020282,2]
[379773853,1755405039116,-567.77,0.00020283,2]
[379773854,1755405039124,-235.01039699,0.00020283,2]
[379773855,1755405039133,-480.0,0.00020283,2]
[379773856,1755405039143,-480.0,0.00020283,2]
[379773857,1755405039152,-480.0,0.00020283,2]
[379773858,1755405039161,-480.0,0.00020283,2]
[379773859,1755405039170,-528.07,0.00020283,2]
[379773860,1755405039179,-480.0,0.00020283,2]
[379773861,1755405039187,-480.0,0.00020283,2]
[379773862,1755405039196,-480.0,0.00020283,2]
[379773863,1755405039206,-480.0,0.00020283,2]
[379773864,1755405039215,-874.14,0.00020283,2]
[379773865,1755405039224,-480.0,0.00020283,2]
[379773866,1755405039233,-480.0,0.00020283,2]
[379773867,1755405039242,-480.0,0.00020283,2]
[379773868,1755405039251,-480.0,0.00020283,2]
[379773869,1755405039260,-565.96,0.00020283,2]
[379773870,1755405039269,-480.0,0.00020283,2]
[379773871,1755405039279,-480.0,0.00020283,2]
[379773872,1755405039289,-480.0,0.00020283,2]
[379773873,1755405039298,-1373.54,0.00020283,2]
[379773874,1755405039307,-480.0,0.00020283,2]
[379773875,1755405039317,-480.0,0.00020283,2]
[379773876,1755405039326,-480.0,0.00020283,2]
[379773877,1755405039335,-480.0,0.00020283,2]
[379773878,1755405039344,-480.0,0.00020283,2]
[379773879,1755405039354,-480.0,0.00020283,2]
[379773880,1755405039363,-480.0,0.00020283,2]
[379773881,1755405039372,-480.0,0.00020283,2]
[379773882,1755405039382,-480.0,0.00020283,2]
[379773883,1755405039391,-480.0,0.00020283,2]
[379773884,1755405039401,-480.0,0.00020283,2]
[379773885,1755405039411,-480.0,0.00020283,2]
[379773886,1755405039420,-480.0,0.00020283,2]
[379773887,1755405039429,-480.0,0.00020283,2]
[379773888,1755405039438,-480.0,0.00020283,2]
[379773889,1755405039448,-480.0,0.00020283,2]
[379773890,1755405039457,-562.91,0.00020283,2]
[379773891,1755405039466,-480.0,0.00020283,2]
[379773892,1755405039474,-500.0,0.00020283,2]
[379773893,1755405039483,-480.0,0.00020283,2]
[379773894,1755405039492,-480.0,0.00020283,2]
[379773895,1755405039502,-480.0,0.00020283,2]
[379773896,1755405039511,-480.0,0.00020283,2]
[379773897,1755405039520,-480.0,0.00020284,2]
[379773898,1755405039531,-480.0,0.00020284,2]
[379773899,1755405039546,-425.63566853,0.00020284,2]
[379773900,1755405039556,-480.0,0.00020284,2]
[379773901,1755405039566,-480.0,0.00020284,2]
[379773902,1755405039575,-480.0,0.00020284,2]
[379773903,1755405039586,-480.0,0.00020284,2]
[379773904,1755405039596,-480.0,0.00020284,2]
[379773905,1755405039605,-480.0,0.00020284,2]
[379773906,1755405039616,-480.0,0.00020284,2]
[379773907,1755405039626,-480.0,0.00020284,2]
[379773908,1755405039636,-374.58367668,0.00020284,2]
[379773909,1755405039645,-480.0,0.00020284,2]
[379773910,1755405039654,-480.0,0.00020284,2]
[379773911,1755405039663,-480.0,0.00020284,2]
[379773912,1755405039672,-480.0,0.00020284,2]
[379773913,1755405039681,-480.0,0.00020284,2]
[379773914,1755405039690,-480.0,0.00020284,2]
[379773915,1755405039700,-480.0,0.00020284,2]
[379773916,1755405039709,-524.55,0.00020284,2]
[379773917,1755405039717,-480.0,0.00020284,2]
[379773918,1755405039727,-480.0,0.00020284,2]
[379773919,1755405039736,-480.0,0.00020284,2]
[379773920,1755405039745,-3730.02,0.00020284,2]
[379773921,1755405039754,-480.0,0.00020284,2]
[379773922,1755405039763,-480.0,0.00020284,2]
[379773923,1755405039774,-480.0,0.00020284,2]
[379773924,1755405039783,-480.0,0.00020284,2]
[379773925,1755405039792,-480.0,0.00020284,2]
[379773926,1755405039802,-480.0,0.00020284,2]
[379773927,1755405039811,-428.77903435,0.00020284,2]
[379773928,1755405039820,-480.0,0.00020284,2]
[379773929,1755405039830,-851.5,0.00020284,2]
[379773930,1755405039840,-479.64454977,0.00020284,2]
[379773931,1755405039849,-480.0,0.00020284,2]
[379773932,1755405039858,-503.69,0.00020284,2]
[379773933,1755405039868,-480.0,0.00020284,2]
[379773934,1755405039877,-609.01194923,0.00020284,2]
[379773935,1755405039886,-480.0,0.00020284,2]
[379773936,1755405039895,-480.0,0.00020284,2]
[379773937,1755405039904,-535.15,0.00020284,2]
[379773938,1755405039914,-548.42,0.00020285,2]
[379773939,1755405039923,-480.0,0.00020285,2]
[379773940,1755405039931,-480.0,0.00020285,2]
[379773941,1755405039941,-480.0,0.00020285,2]
[379773942,1755405039950,-480.0,0.00020285,2]
[379773943,1755405039959,-480.0,0.00020285,2]
[379773944,1755405039968,-480.0,0.00020285,2]
[379773945,1755405039977,-480.0,0.00020285,2]
[379773946,1755405039986,-480.0,0.00020285,2]
[379773947,1755405039995,-480.0,0.00020285,2]
[379773948,1755405040004,-491.16,0.00020285,2]
[379773949,1755405040013,-480.0,0.00020285,2]
[379773950,1755405040023,-480.0,0.00020285,2]
[379773951,1755405040034,-480.0,0.00020285,2]
[379773952,1755405040043,-473.42667314,0.00020285,2]
[379773953,1755405040052,-520.34,0.00020285,2]
[379773954,1755405040062,-480.0,0.00020285,2]
[379773955,1755405040071,-480.0,0.00020285,2]
[379773956,1755405040080,-480.0,0.00020285,2]
[379773957,1755405040089,-480.0,0.00020285,2]
[379773958,1755405040098,-480.0,0.00020285,2]
[379773959,1755405040107,-480.0,0.00020285,2]
[379773960,1755405040116,-480.0,0.00020285,2]
[379773961,1755405040125,-480.0,0.00020285,2]
[379773962,1755405040135,-465.89563407,0.00020285,2]
[379773963,1755405040144,-480.0,0.00020285,2]
[379773964,1755405040153,-480.0,0.00020285,2]
[379773965,1755405040163,-480.0,0.00020285,2]
[379773966,1755405040171,-480.0,0.00020285,2]
[379773967,1755405040181,-480.0,0.00020285,2]
[379773968,1755405040190,-480.0,0.00020285,2]
[379773969,1755405040200,-480.0,0.00020285,2]
[379773970,1755405040209,-480.0,0.00020285,2]
[379773971,1755405040218,-87.29354108,0.00020285,2]
[379773972,1755405040232,-392.70645892,0.00020285,2]
[379773973,1755405040241,-480.0,0.00020285,2]
[379773974,1755405040251,-4643.71,0.00020285,2]
[379773975,1755405040261,-522.78,0.00020285,2]
[379773976,1755405040270,-585.79,0.00020285,2]
[379773977,1755405040280,-480.0,0.00020285,2]
[379773978,1755405040292,-2299.81,0.00020286,2]
[379773979,1755405040301,-239.55412188,0.00020287,2]
[379773980,1755405040321,-240.44587812,0.00020287,2]
[379773981,1755405040330,-480.0,0.00020287,2]
[379773982,1755405040340,-349.72126233,0.00020287,2]
[379773983,1755405040351,-130.27873767,0.00020287,2]
[379773984,1755405040361,-480.0,0.00020287,2]
[379773985,1755405040370,-480.0,0.00020287,2]
[379773986,1755405040380,-531.63,0.00020287,2]
[379773987,1755405040391,-470.64546423,0.00020287,2]
[379774005,1755405040600,-9.35453577,0.00020287,2]
[379774007,1755405040612,-480.0,0.00020287,2]
[379774009,1755405040621,-480.0,0.00020287,2]
[379774011,1755405040631,-480.0,0.00020287,2]
[379774013,1755405040640,-480.0,0.00020287,2]
[379774015,1755405040649,-480.0,0.00020287,2]
[379774017,1755405040659,-480.0,0.00020287,2]
[379774019,1755405040668,-480.0,0.00020287,2]
[379774021,1755405040677,-480.0,0.00020287,2]
[379774023,1755405040687,-480.0,0.00020287,2]
[379774025,1755405040707,-480.0,0.00020287,2]
[379774027,1755405040726,-480.0,0.00020287,2]
[379774029,1755405040743,-480.0,0.00020287,2]
[379774031,1755405040752,-238.79481874,0.00020287,2]
[379774607,1755405046746,-480.0,0.00020282,2]
[379774609,1755405046756,-480.0,0.00020285,2]
[379774611,1755405046765,-40.0,0.00020287,2]
[379775585,1755405057047,225.64,0.00019891,2]
[379777700,1755405102960,1506.15629805,0.00019178,2]
[379777701,1755405139347,222.77,0.00019883,2]
[379777702,1755405144542,500.0,0.00018834,2]
[379777703,1755405232084,219.93,0.00019891,2]
[379777704,1755405255398,421.47851009,0.00019858,2]
[379777705,1755405257910,1684.22812634,0.00019858,2]
[379777707,1755405274061,189.28957646,0.00019858,2]
[379777708,1755405276385,756.40114755,0.00019858,2]
[379777709,1755405316722,217.14,0.00019886,2]
[379777710,1755405362845,290.1130993,0.00027724,120]
[379777711,1755405362984,157.503222,0.00019863,2]
[379777712,1755405401261,214.37,0.00019883,2]
[379777713,1755405484298,211.64,0.0001989,2]
[379777714,1755405565999,208.95,0.00019889,2]
[379777715,1755405637944,10997.89775237,0.0002,2]
[379777716,1755405650381,206.29,0.00019885,2]
[379777717,1755405678069,3239.27906746,0.00019195,2]
[379777718,1755405678092,3239.12197894,0.00019195,2]
[379777719,1755405699049,165.619886,0.00013699,2]
[379777720,1755405727356,253.92145063,0.00019986,2]
[379777721,1755405730781,203.66,0.00019887,2]
[379777726,1755405749115,480.0,0.00018834,2]
[379777727,1755405750478,523.90568094,0.00019986,2]
[379777728,1755405812086,201.07,0.00019889,2]
[379777730,1755405875259,1004.92359698,0.0002773,60]
[379777731,1755405894732,198.51,0.00019888,2]
[379777732,1755405968767,151.15445482,0.00019986,2]
[379777733,1755405977544,195.99,0.00019882,2]
[379777734,1755406059687,193.49,0.00019889,2]
[379777744,1755406143453,191.03,0.00019887,2]
[379777799,1755406232860,-244.58014351,0.00020079,2]
[379777800,1755406232870,-151.15445482,0.00020083,2]
[379777801,1755406232879,-160.0,0.00020086,2]
[379777802,1755406232888,-104.34266543,0.00020104,2]
[379777803,1755406232900,-140.23747804,0.00020104,2]
[379777804,1755406232909,-244.58014347,0.00020129,2]
[379777805,1755406232918,-244.58014347,0.00020154,2]
[379777806,1755406232927,-524.10223502,0.00020179,2]
[379777807,1755406232942,-675.89776498,0.00020179,2]
[379777808,1755406232951,-244.58014347,0.00020179,2]
[379777809,1755406232960,-1200.0,0.00020179,2]
[379777810,1755406232970,-1167.1731643,0.0002018,2]
[379777811,1755406232979,-151.15445482,0.0002018,2]
[379777812,1755406232988,-300.0,0.0002018,2]
[379777813,1755406232998,-300.0,0.0002018,2]
[379777814,1755406233007,-300.0,0.0002018,2]
[379777815,1755406233017,-300.0,0.0002018,2]
[379777816,1755406233026,-300.0,0.0002018,2]
[379777817,1755406233036,-11268.39,0.00020185,2]
[379777818,1755406233045,-46.9616697,0.00020278,2]
[379777819,1755406233058,-433.0383303,0.00020278,2]
[379777820,1755406233067,-480.0,0.00020278,2]
[379777821,1755406233077,-1102.77,0.00020278,2]
[379777822,1755406233092,-480.0,0.00020278,2]
[379777823,1755406233102,-483.07,0.00020278,2]
[379777824,1755406233112,-480.0,0.00020279,2]
[379777825,1755406233121,-480.0,0.00020279,2]
[379777826,1755406233133,-480.0,0.00020279,2]
[379777827,1755406233143,-1101.07,0.00020279,2]
[379777828,1755406233153,-480.0,0.00020279,2]
[379777829,1755406233170,-480.0,0.00020279,2]
[379777830,1755406233180,-480.0,0.00020279,2]
[379777831,1755406233190,-475.19275947,0.00020279,2]
[379777832,1755406233200,-480.0,0.00020279,2]
[379777833,1755406233211,-719.99,0.00020279,2]
[379777834,1755406233221,-480.0,0.00020279,2]
[379777835,1755406233230,-1302.51,0.00020279,2]
[379777836,1755406233240,-480.0,0.00020279,2]
[379777837,1755406233251,-480.0,0.00020279,2]
[379777838,1755406233261,-766.77,0.00020279,2]
[379777839,1755406233271,-480.0,0.00020279,2]
[379777840,1755406233281,-491.78,0.00020279,2]
[379777842,1755406233290,-1935.24,0.00020279,2]
[379777843,1755406233299,-480.0,0.00020279,2]
[379777846,1755406233309,-480.0,0.00020279,2]
[379777848,1755406233318,-480.0,0.00020279,2]
[379777850,1755406233328,-480.0,0.00020279,2]
[379777851,1755406233338,-480.0,0.00020279,2]
[379777853,1755406233347,-480.0,0.00020279,2]
[379777855,1755406233358,-480.0,0.00020279,2]
[379777858,1755406233367,-480.0,0.00020279,2]
[379777859,1755406233376,-578.41448451,0.00020279,2]
[379777861,1755406233386,-500.0,0.00020279,2]
[379777863,1755406233396,-376.00610808,0.00020279,2]
[379777865,1755406233406,-500.0,0.00020279,2]
[379777867,1755406233416,-226.58409073,0.00020279,2]
[379777869,1755406233426,-500.0,0.00020279,2]
[379777871,1755406233435,-500.0,0.00020279,2]
[379777873,1755406233445,-500.0,0.00020279,2]
[379777875,1755406233456,-500.0,0.00020279,2]
[379777877,1755406233466,-178.6540805,0.00020279,2]
[379777879,1755406233476,-500.0,0.00020279,2]
[379777881,1755406233486,-183.0199536,0.00020279,2]
[379777883,1755406233495,-480.0,0.0002028,2]
[379777885,1755406233505,-480.0,0.0002028,2]
[379777887,1755406233514,-480.0,0.0002028,2]
[379777889,1755406233524,-579.16,0.0002028,2]
[379777891,1755406233534,-480.0,0.0002028,2]
[379777893,1755406233543,-480.0,0.0002028,2]
[379777895,1755406233552,-480.0,0.0002028,2]
[379777897,1755406233562,-958.87,0.0002028,2]
[379777899,1755406233572,-480.0,0.0002028,2]
[379777901,1755406233581,-480.0,0.0002028,2]
[379777902,1755406233591,-448.07552297,0.0002028,2]
[379777903,1755406233602,-480.0,0.0002028,2]
[379777904,1755406233612,-3574.6,0.0002028,2]
[379777905,1755406233622,-480.0,0.0002028,2]
[379777906,1755406233631,-480.0,0.0002028,2]
[379777907,1755406233641,-480.0,0.0002028,2]
[379777908,1755406233651,-480.0,0.0002028,2]
[379777909,1755406233661,-925.22,0.0002028,2]
[379777910,1755406233676,-480.0,0.0002028,2]
[379777911,1755406233686,-480.0,0.0002028,2]
[379777912,1755406233696,-1453.73,0.0002028,2]
[379777913,1755406233707,-480.0,0.0002028,2]
[379777914,1755406233717,-308.82462404,0.0002028,2]
[379777915,1755406233726,-527.31,0.0002028,2]
[379777916,1755406233736,-480.0,0.0002028,2]
[379777917,1755406233746,-480.0,0.0002028,2]
[379777918,1755406233755,-554.91,0.0002028,2]
[379777919,1755406233765,-480.0,0.0002028,2]
[379777920,1755406233775,-480.0,0.0002028,2]
[379777921,1755406233785,-480.0,0.0002028,2]
[379777922,1755406233795,-480.0,0.0002028,2]
[379777923,1755406233804,-530.62297769,0.0002028,2]
[379777924,1755406233814,-480.0,0.0002028,2]
[379777925,1755406233823,-480.0,0.0002028,2]
[379777926,1755406233834,-480.0,0.0002028,2]
[379777927,1755406233844,-480.0,0.0002028,2]
[379777928,1755406233853,-480.0,0.0002028,2]
[379777929,1755406233862,-512.85,0.0002028,2]
[379777930,1755406233871,-480.0,0.0002028,2]
[379777931,1755406233881,-480.0,0.0002028,2]
[379777932,1755406233890,-539.45,0.0002028,2]
[379777933,1755406233899,-480.0,0.0002028,2]
[379777934,1755406233910,-480.0,0.0002028,2]
[379777935,1755406233920,-480.0,0.00020281,2]
[379777936,1755406233929,-511.67,0.00020281,2]
[379777937,1755406233938,-501.29,0.00020281,2]
[379777938,1755406233948,-480.0,0.00020281,2]
[379777939,1755406233957,-480.0,0.00020281,2]
[379777940,1755406233967,-480.0,0.00020281,2]
[379777941,1755406233976,-326.8347982,0.00020281,2]
[379777942,1755406233986,-480.0,0.00020281,2]
[379777943,1755406233995,-480.0,0.00020281,2]
[379777944,1755406234004,-480.0,0.00020281,2]
[379777945,1755406234013,-400.0,0.00020281,2]
[379777946,1755406234022,-480.0,0.00020281,2]
[379777947,1755406234032,-480.0,0.00020281,2]
[379777948,1755406234041,-480.0,0.00020281,2]
[379777949,1755406234051,-465.61715794,0.00020281,2]
[379777950,1755406234060,-535.19,0.00020281,2]
[379777951,1755406234075,-480.0,0.00020281,2]
[379777952,1755406234097,-480.0,0.00020281,2]
[379777953,1755406234108,-480.0,0.00020281,2]
[379777954,1755406234146,-480.0,0.00020281,2]
[379777955,1755406234156,-480.0,0.00020281,2]
[379777956,1755406234167,-480.0,0.00020281,2]
[379777957,1755406234177,-480.0,0.00020281,2]
[379777958,1755406234187,-480.0,0.00020281,2]
[379777959,1755406234197,-480.0,0.00020281,2]
[379777960,1755406234207,-480.0,0.00020281,2]
[379777961,1755406234216,-460.0,0.00020281,2]
[379777962,1755406234225,-480.0,0.00020281,2]
[379777963,1755406234235,-480.0,0.00020281,2]
[379777964,1755406234245,-480.0,0.00020281,2]
[379777965,1755406234254,-480.0,0.00020281,2]
[379777966,1755406234264,-480.0,0.00020281,2]
[379777967,1755406234273,-560.0,0.00020281,2]
[379777968,1755406234283,-480.0,0.00020281,2]
[379777969,1755406234292,-480.0,0.00020281,2]
[379777970,1755406234301,-480.0,0.00020281,2]
[379777971,1755406234311,-480.0,0.00020282,2]
[379777972,1755406234321,-480.0,0.00020282,2]
[379777973,1755406234330,-480.0,0.00020282,2]
[379777974,1755406234340,-480.0,0.00020282,2]
[379777975,1755406234350,-480.0,0.00020282,2]
[379777976,1755406234359,-480.0,0.00020282,2]
[379777977,1755406234369,-480.0,0.00020282,2]
[379777978,1755406234378,-539.72374108,0.00020282,2]
[379777979,1755406234387,-480.0,0.00020282,2]
[379777980,1755406234397,-480.0,0.00020282,2]
[379777981,1755406234406,-520.18,0.00020282,2]
[379777982,1755406234416,-480.0,0.00020282,2]
[379777983,1755406234425,-158.57051047,0.00020282,2]
[379777984,1755406234435,-480.0,0.00020282,2]
[379777985,1755406234444,-4450.22,0.00020282,2]
[379777986,1755406234453,-2203.98,0.00020282,2]
[379777987,1755406234463,-480.0,0.00020282,2]
[379777988,1755406234472,-480.0,0.00020282,2]
[379777989,1755406234481,-480.0,0.00020282,2]
[379777990,1755406234491,-561.38,0.00020282,2]
[379777991,1755406234500,-480.0,0.00020283,2]
[379777992,1755406234510,-480.0,0.00020283,2]
[379777993,1755406234519,-561.8,0.00020283,2]
[379777994,1755406234528,-480.0,0.00020283,2]
[379777995,1755406234538,-480.0,0.00020283,2]
[379777996,1755406234547,-480.0,0.00020283,2]
[379777997,1755406234557,-480.0,0.00020283,2]
[379777998,1755406234566,-480.0,0.00020283,2]
[379777999,1755406234575,-480.0,0.00020283,2]
[379778000,1755406234584,-480.0,0.00020283,2]
[379778001,1755406234594,-480.0,0.00020283,2]
[379778002,1755406234604,-480.0,0.00020283,2]
[379778003,1755406234614,-480.0,0.00020283,2]
[379778004,1755406234623,-480.0,0.00020283,2]
[379778005,1755406234632,-480.0,0.00020283,2]
[379778006,1755406234642,-480.0,0.00020283,2]
[379778007,1755406234651,-513.05321098,0.00020284,2]
[379778008,1755406234660,-480.0,0.00020284,2]
[379778009,1755406234670,-282.67960988,0.00020284,2]
[379778010,1755406234679,-480.0,0.00020284,2]
[379778011,1755406234688,-480.0,0.00020284,2]
[379778012,1755406234698,-301.40638054,0.00020284,2]
[379778013,1755406234708,-480.0,0.00020284,2]
[379778014,1755406234717,-480.0,0.00020284,2]
[379778015,1755406234726,-480.0,0.00020284,2]
[379778016,1755406234735,-480.0,0.00020284,2]
[379778017,1755406234745,-480.0,0.00020284,2]
[379778018,1755406234754,-480.0,0.00020284,2]
[379778019,1755406234763,-480.0,0.00020284,2]
[379778020,1755406234773,-480.0,0.00020284,2]
[379778021,1755406234782,-480.0,0.00020284,2]
[379778022,1755406234791,-480.0,0.00020284,2]
[379778023,1755406234800,-480.0,0.00020284,2]
[379778024,1755406234809,-900.74,0.00020284,2]
[379778025,1755406234818,-480.0,0.00020284,2]
[379778026,1755406234827,-840.47,0.00020284,2]
[379778027,1755406234837,-480.0,0.00020284,2]
[379778028,1755406234846,-480.0,0.00020285,2]
[379778029,1755406234855,-480.0,0.00020287,2]
[379778030,1755406234864,-500.0,0.00020287,2]
[379778031,1755406234874,-435.0,0.00020311,2]
[379778032,1755406234883,-927.58585553,0.00020321,2]
[379778033,1755406234892,-17842.522448,0.00020321,2]
[379778034,1755406234902,-250.0,0.00020321,2]
[379778035,1755406234911,-151.0,0.00020321,2]
[379778036,1755406234920,-250.0,0.00020321,2]
[379778037,1755406234929,-250.0,0.00020321,2]
[379778038,1755406234938,-1570.81266411,0.00020321,2]
[379778039,1755406234947,-168.0,0.00020423,2]
[379778040,1755406234956,-435.0,0.00020452,2]
[379778041,1755406234965,-174.5050164,0.00020454,2]
[379778042,1755406234974,-168.0,0.0002054,2]
[379778043,1755406234983,-525.04,0.00020543,3]
[379778044,1755406234992,-700.0,0.00020544,3]
[379778045,1755406235001,-350.0,0.00020544,3]
[379778046,1755406235010,-175.0,0.00020544,3]
[379778047,1755406235019,-375.75,0.00020552,2]
[379778048,1755406235029,-480.0,0.00020552,2]
[379778049,1755406235038,-1102.77,0.00020552,2]